bitfinex-derivatives/quotes_SOLF0:USTF0_20250829
["timestamp","ask_amount","ask_price","bid_price","bid_amount"]
[1756435463386,7.11,216.25,216.11,97.79783784]
[1756435463587,7.11,216.25,216.11,11.25783784]
[1756435464689,7.11,216.28,216.11,7.07]
[1756435466194,7.11,216.28,216.11,11.25783784]
[1756435466489,7.11,216.28,216.12,7.07]
[1756435467791,7.11,216.28,216.12,18.67]
[1756435468292,7.11,216.28,216.13,20.62]
[1756435468889,7.11,216.28,216.14,7.07]
[1756435469286,7.11,216.28,216.16,7.07]
[1756435470992,310.98,216.34,216.16,7.07]
[1756435471200,318.09,216.34,216.2,7.07]
[1756435473503,318.09,216.34,216.15,20.01783784]
[1756435473695,7.11,216.33,216.15,11.25783784]
[1756435473895,310.98,216.34,216.15,11.25783784]
[1756435474698,7.11,216.33,216.15,11.25783784]
[1756435475397,310.98,216.34,216.15,11.25783784]
[1756435475601,7.11,216.33,216.15,11.25783784]
[1756435475801,310.98,216.34,216.15,11.25783784]
[1756435476200,310.98,216.34,216.15,7.07]
[1756435476502,7.11,216.33,216.15,7.07]
[1756435477605,7.11,216.33,216.15,13.61]
[1756435477793,7.43,216.33,216.16,7.7]
[1756435477999,7.43,216.33,216.18,7.7]
[1756435478897,7.43,216.33,216.18,20.3]
[1756435479097,7.43,216.33,216.18,7.7]
[1756435484004,129.83,216.37,216.21,7.7]
[1756435484209,129.83,216.37,216.25,7.7]
[1756435485708,7.43,216.37,216.25,7.7]
[1756435489619,7.43,216.37,216.19,4.18783784]
[1756435489620,7.43,216.37,216.2,7.7]
[1756435489917,7.43,216.34,216.2,7.7]
[1756435499817,7.43,216.34,216.12,310.64]
[1756435499818,7.43,216.34,216.13,4.18783784]
[1756435500023,7.43,216.3,216.14,7.7]
[1756435500222,4.18783784,216.27,216.14,7.7]
[1756435500422,7.43,216.26,216.14,7.7]
[1756435500727,7.43,216.26,216.16,7.7]
[1756435501026,7.43,216.33,216.16,7.7]
[1756435502223,7.43,216.32,216.16,72.12]
[1756435502628,7.43,216.32,216.16,129.14]
[1756435504020,11.61783784,216.42,216.23,4.18783784]
[1756435504222,11.61783784,216.42,216.24,7.7]
[1756435505025,4.18783784,216.34,216.18,7.7]
[1756435505330,7.43,216.33,216.18,7.7]
[1756435505624,7.43,216.4,216.22,4.18783784]
[1756435505835,7.43,216.45,216.31,7.7]
[1756435506921,0.03419073,216.4,216.31,7.7]
[1756435507226,0.03419073,216.4,216.32,3.76491141]
[1756435507625,0.03419073,216.4,216.35,3.76491141]
[1756435507928,0.03419073,216.4,216.36,7.08]
[1756435508129,0.03419073,216.4,216.35,3.76491141]
[1756435508334,7.42,216.5,216.39,7.08]
[1756435508632,7.42,216.5,216.42,4.18783784]
[1756435509429,7.42,216.55,216.42,4.18783784]
[1756435509630,7.42,216.55,216.44,0.03207716]
[1756435510225,7.42,216.52,216.44,0.03207716]
[1756435511732,130.14,216.52,216.44,0.03207716]
[1756435519046,7.42,216.48,216.33,7.08]
[1756435519251,7.42,216.44,216.33,7.08]
[1756435519947,81.58,216.48,216.33,7.08]
[1756435520746,7.42,216.47,216.33,7.08]
[1756435521762,7.42,216.44,216.33,7.08]
[1756435522145,4.18783784,216.41,216.28,7.08]
[1756435522349,29.88,216.4,216.28,7.08]
[1756435522544,7.42,216.36,216.25,3.76491141]
[1756435522743,7.42,216.36,216.24,3.76491141]
[1756435522944,7.42,216.36,216.24,7.08]
[1756435526743,7.42,216.36,216.21,3.76491141]
[1756435526946,4.18783784,216.33,216.2,3.76491141]
[1756435527146,7.42,216.32,216.2,3.76491141]
[1756435528255,7.42,216.32,216.19,10.84491141]
[1756435529452,7.42,216.32,216.21,10.84491141]
[1756435530252,7.42,216.35,216.21,3.76491141]
[1756435530451,7.42,216.35,216.2,10.84491141]
[1756435530650,7.42,216.35,216.2,3.76491141]
[1756435530850,7.42,216.35,216.21,7.08]
[1756435532946,4.18783784,216.28,216.17,3.76491141]
[1756435533151,7.42,216.27,216.16,7.08]
[1756435533546,11.60783784,216.32,216.16,7.08]
[1756435533954,11.60783784,216.32,216.17,7.08]
[1756435534657,7.42,216.27,216.13,7.08]
[1756435538551,93.14,216.27,216.13,7.08]
[1756435540056,7.14,216.23,216.13,7.08]
[1756435540760,7.14,216.27,216.13,7.08]
[1756435545352,7.14,216.19,216.07,7.41]
[1756435545557,33.66,216.23,216.07,7.41]
[1756435546559,7.14,216.23,216.07,7.41]
[1756435550766,7.14,216.19,216.07,7.41]
[1756435551266,2.55135331,216.16,216.07,7.41]
[1756435551561,2.55135331,216.16,215.93,9.74689104]
[1756435551562,7.14,216.12,216.0,7.41]
[1756435551767,2.55135331,216.1,216.0,7.41]
[1756435553164,7.14,216.12,216.0,7.41]
[1756435554272,7.14,216.09,215.91,7.41]
[1756435555362,7.14,216.05,215.91,7.41]
[1756435558472,4.18877106,216.14,215.92,7.41]
[1756435558772,20.66,216.13,215.96,7.41]
[1756435559572,80.84,216.12,215.96,7.41]
[1756435559875,7.14,216.11,215.96,7.41]
[1756435561968,7.14,216.11,215.98,7.41]
[1756435562366,7.14,216.11,216.03,7.41]
[1756435562367,0.03154138,216.07,216.03,7.41]
[1756435562570,0.03154138,216.07,216.02,0.0306581]
[1756435562781,7.14,216.06,216.02,0.0306581]
[1756435563567,0.03154138,216.07,216.02,0.0306581]
[1756435563971,7.17154138,216.07,216.02,0.0306581]
[1756435564271,7.14,216.06,216.02,0.0306581]
[1756435564972,0.03154138,216.07,216.03,7.41]
[1756435565576,0.03154138,216.07,216.02,0.0306581]
[1756435566074,7.17154138,216.07,216.02,7.4406581]
[1756435566466,0.03154138,216.07,216.02,0.0306581]
[1756435566873,0.03154138,216.07,216.03,7.3]
[1756435567073,7.07154138,216.07,216.02,0.0306581]
[1756435567272,0.03154138,216.07,216.02,0.0306581]
[1756435567479,7.04,216.06,216.02,0.0306581]
[1756435567875,0.03154138,216.07,216.02,7.3306581]
[1756435568074,0.03154138,216.07,216.02,0.0306581]
[1756435568279,0.03154138,216.07,216.03,7.3]
[1756435569981,7.04,216.06,216.02,0.0306581]
[1756435570175,0.03154138,216.07,216.02,0.0306581]
[1756435570680,11.22877106,216.06,216.02,0.0306581]
[1756435571783,7.04,216.04,215.9,7.3]
[1756435571977,7.04,216.01,215.9,7.3]
[1756435573084,0.02995231,215.98,215.9,7.3]
[1756435576085,0.02995231,215.98,215.91,7.3]
[1756435579883,0.02995231,215.98,215.91,11.06491141]
[1756435580279,0.02995231,215.98,215.92,7.3]
[1756435580483,0.02995231,215.98,215.93,7.3]
[1756435580983,0.02995231,215.98,215.92,7.3]
[1756435581288,7.06995231,215.98,215.87,11.06491141]
[1756435581483,0.02995231,215.98,215.83,106.96427758]
[1756435581679,7.04,215.97,215.83,106.96427758]
[1756435582084,0.029313,215.93,215.83,106.96427758]
[1756435584788,0.029313,215.93,215.83,7.3]
[1756435587788,7.04,215.92,215.83,7.3]
[1756435589195,0.029313,215.93,215.83,7.3]
[1756435589600,0.029313,215.93,215.83,11.48877106]
[1756435589797,0.029313,215.93,215.84,18.98]
[1756435590004,0.029313,215.93,215.85,7.3]
[1756435592803,7.069313,215.93,215.85,7.3]
[1756435594212,7.069313,215.93,215.78,7.3]
[1756435594603,7.04,215.93,215.78,7.3]
[1756435595011,0.03332155,215.88,215.78,7.3]
[1756435595309,0.03332155,215.88,215.78,11.06491141]
[1756435595505,0.03332155,215.88,215.78,3.76491141]
[1756435595710,0.03332155,215.88,215.79,7.3]
[1756435596110,0.03332155,215.88,215.8,3.76491141]
[1756435596300,0.03332155,215.88,215.8,10.97491141]
[1756435596499,0.03332155,215.88,215.82,4.18877106]
[1756435596705,0.03332155,215.88,215.83,10.97491141]
[1756435596912,0.03332155,215.88,215.84,7.21]
[1756435597412,0.03332155,215.88,215.83,3.76491141]
[1756435597810,0.03332155,215.88,215.84,7.21]
[1756435598009,7.22,215.98,215.85,7.21]
[1756435598209,7.22,216.03,215.87,7.21]
[1756435599314,7.22,216.03,215.87,10.97491141]
[1756435599515,7.22,216.03,215.88,7.21]
[1756435601516,377.1,216.04,215.91,7.21]
[1756435601712,66.06,216.04,215.91,7.21]
[1756435602116,7.22,216.08,215.91,7.21]
[1756435602316,7.22,216.08,215.9,7.95368247]
[1756435602516,7.22,216.08,215.91,7.21]
[1756435606417,7.22,216.05,215.91,7.21]
[1756435607412,7.22,216.05,215.87,3.76491141]
[1756435607617,7.22,216.01,215.87,7.21]
[1756435608612,7.22,216.01,215.88,7.21]
[1756435609316,7.22,216.01,215.88,10.97491141]
[1756435609617,7.22,216.01,215.88,7.21]
[1756435611512,7.22,215.97,215.83,10.97491141]
[1756435611717,7.22,215.97,215.83,7.21]
[1756435616924,7.22,216.02,215.87,7.21]
[1756435620823,14.2,216.05,215.85,3.76491141]
[1756435620824,7.22,215.93,215.85,3.76491141]
[1756435621026,4.18877106,215.9,215.8,3.76491141]
[1756435621225,11.40877106,215.9,215.77,10.97491141]
[1756435621422,11.40877106,215.9,215.77,7.21]
[1756435621921,11.40877106,215.9,215.77,10.97491141]
[1756435622122,4.93835796,216.01,215.69,17.91495178]
[1756435622123,7.22,215.96,215.81,4.18877106]
[1756435622322,7.22,216.01,215.86,3.76491141]
[1756435622518,7.22,216.01,215.88,3.76491141]
[1756435622722,7.22,216.01,215.87,10.97491141]
[1756435622921,7.22,216.08,215.89,3.76491141]
[1756435623127,7.22,216.08,215.95,7.21]
[1756435623323,4.93835796,216.17,215.94,4.18877106]
[1756435623324,7.22,216.17,215.99,7.21]
[1756435623517,7.22,216.17,216.0,7.21]
[1756435623724,7.22,216.17,216.0,10.97491141]
[1756435624722,7.22,216.17,216.0,7.21]
[1756435627129,13.87,216.16,215.95,11.35491141]
[1756435627334,7.44,216.12,215.95,7.59]
[1756435628029,7.44,216.12,215.95,3.76491141]
[1756435628229,7.44,216.12,215.99,7.59]
[1756435629033,7.44,216.12,216.0,7.59]
[1756435631738,74.92,216.17,216.01,7.59]
[1756435632345,318.6,216.22,216.07,7.59]
[1756435635641,318.6,216.22,216.01,7.59]
[1756435638349,318.6,216.22,216.05,7.59]
[1756435638844,7.44,216.22,216.09,7.59]
[1756435639047,30.62,216.29,216.13,7.59]
[1756435641554,30.62,216.29,216.08,7.59]
[1756435642445,4.18877106,216.26,216.08,7.59]
[1756435642649,7.44,216.25,216.03,11.77877106]
[1756435642844,18.05877106,216.26,216.03,11.77877106]
[1756435643742,7.44,216.25,216.03,11.77877106]
[1756435644041,7.44,216.2,216.03,7.59]
[1756435644244,7.44,216.18,216.03,7.59]
[1756435644946,7.44,216.23,216.05,7.59]
[1756435646650,7.44,216.17,216.05,7.59]
[1756435646841,7.44,216.13,215.99,7.59]
[1756435647045,7.44,216.09,215.99,7.59]
[1756435648948,7.44,216.09,215.92,7.59]
[1756435649748,4.18877106,216.06,215.92,7.59]
[1756435649945,11.62877106,216.06,215.92,7.59]
[1756435650950,7.44,216.06,215.92,7.59]
[1756435654755,11.62877106,216.06,215.92,7.59]
[1756435655552,4.18877106,216.06,215.87,121.34]
[1756435655753,7.44,216.05,215.87,128.93]
[1756435655954,4.18877106,216.06,215.87,128.93]
[1756435656145,7.44,216.05,215.87,7.12]
[1756435656349,7.44,216.05,215.88,7.12]
[1756435657455,7.44,216.05,215.91,7.12]
[1756435661256,7.39,216.12,215.95,7.12]
[1756435663056,7.39,216.12,215.99,7.12]
[1756435664260,7.39,216.13,215.94,11.30877106]
[1756435664453,14.30877106,216.14,215.94,11.30877106]
[1756435664651,7.39,216.13,215.95,7.12]
[1756435664848,7.39,216.13,215.99,7.12]
[1756435665251,7.39,216.2,216.03,7.12]
[1756435665854,7.39,216.2,216.07,7.12]
[1756435666255,310.88,216.22,216.07,7.12]
[1756435666455,128.69,216.25,216.11,7.12]
[1756435667058,128.69,216.25,216.11,37.28]
[1756435668260,128.69,216.25,216.12,7.12]
[1756435669256,128.69,216.25,216.09,3.75513573]
[1756435669559,132.87877106,216.25,216.07,7.12]
[1756435671353,4.18877106,216.21,216.07,7.12]
[1756435671563,7.39,216.16,216.01,7.12]
[1756435671756,36.71,216.16,216.01,7.12]
[1756435672760,7.39,216.16,216.01,7.12]
[1756435674061,44.94877106,216.19,216.01,7.12]
[1756435674062,7.39,216.14,216.01,7.12]
[1756435675365,11.57877106,216.25,216.02,10.87513573]
[1756435675563,7.39,216.2,216.03,7.12]
[1756435676262,7.39,216.16,216.03,7.12]
[1756435677864,7.39,216.27,216.05,4.18877106]
[1756435678071,7.39,216.27,216.1,7.12]
[1756435681168,7.39,216.17,216.02,7.12]
[1756435681871,4.18877106,216.16,216.02,7.12]
[1756435682068,7.39,216.15,216.02,7.12]
[1756435682465,0.03073687,216.11,216.02,7.12]
[1756435682666,7.39,216.26,216.08,7.12]
[1756435682871,7.39,216.26,216.09,7.12]
[1756435683067,7.39,216.24,216.09,7.12]
[1756435683268,83.16009107,216.29,216.04,7.12]
[1756435683269,7.39,216.2,216.04,7.12]
[1756435683477,7.39,216.16,216.04,7.12]
[1756435684176,4.18877106,216.23,216.04,7.12]
[1756435684377,7.39,216.22,216.08,7.12]
[1756435684673,7.39,216.28,216.12,7.12]
[1756435684979,7.39,216.28,216.16,7.12]
[1756435685576,7.39,216.37,216.16,3.75959387]
[1756435685778,7.39,216.37,216.17,7.12]
[1756435686372,7.39,216.37,216.2,7.21]
[1756435686582,21.26,216.37,216.2,7.21]
[1756435688075,7.39,216.37,216.2,7.21]
[1756435690577,7.45,216.42,216.2,7.21]
[1756435690778,7.45,216.42,216.23,4.18877106]
[1756435690779,11.63877106,216.42,216.23,4.18877106]
[1756435690978,11.63877106,216.42,216.24,7.21]
[1756435691374,7.45,216.37,216.24,7.21]
[1756435691779,7.45,216.37,216.16,7.21]
[1756435692883,7.45,216.33,216.16,7.21]
[1756435693181,7.45,216.29,216.11,11.39877106]
[1756435693383,7.45,216.29,216.11,7.21]
[1756435693584,4.18877106,216.26,216.11,7.21]
[1756435693778,7.45,216.25,216.11,7.21]
[1756435694185,7.45,216.21,216.11,7.21]
[1756435694386,7.45,216.21,216.03,7.21]
[1756435697789,7.45,216.17,216.03,7.21]
[1756435699092,7.45,216.23,216.07,7.21]
[1756435700596,7.45,216.18,216.02,7.21]
[1756435701184,4.18877106,216.15,216.02,7.21]
[1756435701393,7.45,216.14,216.02,7.21]
[1756435701684,7.45,216.14,215.97,7.21]
[1756435701887,46.55,216.14,215.97,7.21]
[1756435704392,7.45,216.1,215.97,7.21]
[1756435705090,7.45,216.12,215.97,7.21]
[1756435705398,7.45,216.09,215.97,7.21]
[1756435707584,7.45,216.09,215.92,10.96257505]
[1756435707790,7.45,216.09,215.92,7.21]
[1756435708491,4.18877106,216.06,215.92,7.21]
[1756435708687,7.45,216.05,215.92,7.21]
[1756435708885,4.18877106,216.11,215.92,7.21]
[1756435709086,7.45,216.1,215.93,7.21]
[1756435710388,4.18877106,216.03,215.9,3.75257505]
[1756435710590,4.18877106,216.03,215.88,10.96257505]
[1756435710591,7.45,216.02,215.88,10.96257505]
[1756435710790,7.45,216.02,215.88,7.21]
[1756435710989,25.26,216.01,215.88,7.21]
[1756435711288,7.45,215.98,215.88,7.21]
[1756435711790,7.45,215.98,215.81,7.21]
[1756435712389,7.40575295,216.15,215.85,7.21]
[1756435712390,7.45,216.09,215.85,7.21]
[1756435712692,7.45,216.04,215.85,7.21]
[1756435712993,7.45,216.04,215.86,7.21]
[1756435716095,7.45,216.04,215.9,7.21]
[1756435719400,7.45,216.04,215.93,4.18877106]
[1756435719601,7.55,216.15,215.97,4.18877106]
[1756435719802,7.55,216.13,215.95,4.18877106]
[1756435725911,7.55,216.11,215.95,4.18877106]
[1756435726412,126.49,216.11,215.95,4.18877106]
[1756435727013,7.55,216.11,215.96,7.6]
[1756435729613,7.55,216.09,215.96,7.6]
[1756435729913,7.55,216.05,215.89,7.6]
[1756435730112,7.55,216.01,215.83,7.6]
[1756435730313,41.95,216.01,215.83,7.6]
[1756435732314,7.55,215.97,215.83,7.6]
[1756435734216,7.55,215.95,215.83,7.6]
[1756435735118,7.55,215.93,215.77,7.6]
[1756435736114,4.18877106,215.99,215.8,4.18877106]
[1756435736316,4.18877106,215.99,215.81,7.6]
[1756435737417,7.55,215.98,215.81,7.6]
[1756435740313,4.18877106,215.95,215.81,7.6]
[1756435740518,7.55,215.93,215.81,7.6]
[1756435741811,7.55,216.0,215.82,4.18877106]
[1756435742017,7.55,216.0,215.83,7.6]
[1756435742815,7.55,216.0,215.85,7.6]
[1756435743815,311.06,216.01,215.85,7.6]
[1756435744014,311.06,216.01,215.87,4.18877106]
[1756435744220,311.06,216.01,215.88,7.6]
[1756435744421,7.55,216.05,215.88,7.6]
[1756435745519,7.55,216.05,215.89,3.76660322]
[1756435745719,7.55,216.05,215.9,7.6]
[1756435745920,7.55,216.05,215.91,4.18877106]
[1756435746223,68.12,216.09,215.94,7.51]
[1756435746619,129.49,216.11,215.97,7.51]
[1756435747724,7.27,216.07,215.93,3.76660322]
[1756435747916,7.27,216.03,215.92,7.51]
[1756435749421,4.18877106,216.04,215.87,7.51]
[1756435749629,7.27,216.03,215.87,7.51]
[1756435749823,7.27,216.01,215.87,7.51]
[1756435751123,4.18877106,216.0,215.84,314.90660322]
[1756435751322,4.18877106,216.0,215.82,11.27660322]
[1756435751323,7.27,215.99,215.82,11.27660322]
[1756435751522,4.18877106,216.0,215.82,11.27660322]
[1756435751727,7.27,215.95,215.82,7.51]
[1756435752521,7.27,215.95,215.83,3.76660322]
[1756435752726,7.27,215.95,215.82,11.27660322]
[1756435753029,15.54,215.98,215.83,7.51]
[1756435753230,7.27,216.01,215.86,11.27660322]
[1756435753424,7.27,216.01,215.86,7.51]
[1756435754222,7.27,215.95,215.83,3.76660322]
[1756435754424,7.27,215.95,215.82,11.27660322]
[1756435754625,7.27,215.95,215.82,7.51]
[1756435755028,4.18877106,215.92,215.8,3.76660322]
[1756435755329,7.27,215.91,215.78,7.51]
[1756435757728,85.01,215.91,215.78,7.51]
[1756435758231,129.15,215.91,215.78,7.51]
[1756435759131,7.27,215.91,215.78,7.51]
[1756435759435,7.27,215.97,215.8,11.27660322]
[1756435760033,7.27,215.97,215.81,7.51]
[1756435760228,7.27,215.97,215.82,7.51]
[1756435760533,7.27,215.94,215.82,7.51]
[1756435761829,7.27,215.94,215.78,7.95537428]
[1756435761830,85.82,215.95,215.78,3.76660322]
[1756435762038,85.82,215.95,215.75,5.03112539]
[1756435762039,7.27,215.89,215.75,3.76660322]
[1756435762333,7.27,215.89,215.74,11.27660322]
[1756435762533,7.27,215.89,215.77,3.76660322]
[1756435762733,7.27,215.89,215.76,3.76660322]
[1756435763037,7.27,215.89,215.75,11.27660322]
[1756435763430,7.27,215.89,215.77,3.76660322]
[1756435763627,7.27,215.89,215.78,7.51]
[1756435764230,130.13,215.94,215.78,11.27660322]
[1756435764432,130.13,215.94,215.79,7.51]
[1756435766134,7.27,215.94,215.83,4.18877106]
[1756435766337,7.27,216.01,215.84,7.51]
[1756435766533,7.27,216.01,215.88,7.51]
[1756435772439,7.27,216.01,215.88,3.76660322]
[1756435772745,7.27,216.01,215.86,11.27660322]
[1756435773043,18.07877106,216.06,215.86,11.27660322]
[1756435773439,7.27,216.05,215.86,11.27660322]
[1756435773639,18.07877106,216.06,215.86,11.27660322]
[1756435773843,7.27,216.05,215.86,11.27660322]
[1756435774447,7.27,216.05,215.87,3.76660322]
[1756435774639,7.27,216.05,215.88,7.51]
[1756435775144,7.27,216.05,215.88,11.27660322]
[1756435775344,18.07877106,216.06,215.88,11.27660322]
[1756435775843,7.27,216.05,215.89,7.51]
[1756435776046,7.27,216.05,215.91,7.51]
[1756435776240,7.27,216.05,215.92,3.76660322]
[1756435776440,7.27,216.05,215.94,7.29]
[1756435776746,7.39,216.1,215.95,7.29]
[1756435777141,7.39,216.1,215.96,3.76660322]
[1756435777342,7.39,216.1,215.97,7.29]
[1756435781245,7.39,216.2,216.03,3.76660322]
[1756435781446,7.39,216.22,216.04,11.05660322]
[1756435781650,7.39,216.19,216.04,7.29]
[1756435784640,7.39,216.15,216.04,7.29]
[1756435785151,15.68,216.14,216.04,7.29]
[1756435785350,7.39,216.13,215.95,7.29]
[1756435785853,7.39,216.11,215.95,7.29]
[1756435788353,7.39,216.07,215.95,7.29]
[1756435790756,7.39,216.13,215.96,7.29]
[1756435791552,7.39,216.1,215.96,7.29]
[1756435791755,7.39,216.06,215.9,7.29]
[1756435792055,4.18877106,216.07,215.9,7.29]
[1756435792056,41.28,216.05,215.9,7.29]
[1756435792261,7.39,216.04,215.9,7.29]
[1756435792957,7.39,216.02,215.9,7.29]
[1756435801260,2.55572978,215.98,215.9,7.29]
[1756435801462,7.39,215.99,215.9,7.29]
[1756435801763,2.55572978,216.02,215.9,7.29]
[1756435802265,7.39,216.03,215.9,7.29]
[1756435802462,2.55572978,216.05,215.92,2.55572978]
[1756435802763,7.39,216.08,215.96,7.29]
[1756435806661,311.04,216.16,215.98,3.78535822]
[1756435806662,7.53,216.15,215.98,3.78535822]
[1756435806862,7.53,216.15,215.99,7.66]
[1756435807863,7.53,216.15,216.0,11.44535822]
[1756435808070,7.53,216.15,216.01,7.66]
[1756435808665,7.53,216.15,216.02,7.66]
[1756435809962,11.71923043,216.15,216.02,7.66]
[1756435811576,7.53,216.15,216.02,7.66]
[1756435812372,7.53,216.12,215.99,3.78535822]
[1756435812577,7.53,216.08,215.98,7.66]
[1756435812873,7.53,216.08,215.94,7.66]
[1756435815574,7.53,216.08,215.96,7.66]
[1756435815876,7.53,216.08,215.9,4.18923043]
[1756435815877,7.53,216.08,215.97,11.44535822]
[1756435816076,7.53,216.08,215.97,3.78535822]
[1756435816275,7.53,216.08,215.98,7.66]
[1756435818880,54.93,216.12,215.98,7.66]
[1756435819180,54.93,216.12,216.01,11.44535822]
[1756435819374,7.53,216.11,216.01,7.66]
[1756435820073,7.53,216.11,215.98,3.78535822]
[1756435820273,7.53,216.09,215.97,11.44535822]
[1756435820676,7.53,216.09,215.97,7.66]
[1756435820882,7.53,216.05,215.95,11.44535822]
[1756435821282,7.53,216.05,215.96,3.78535822]
[1756435821584,7.53,216.05,215.95,11.44535822]
[1756435821783,7.53,216.05,215.96,3.78535822]
[1756435821980,72.41923043,216.1,215.97,7.66]
[1756435822282,68.23,216.1,215.98,3.78535822]
[1756435823080,7.53,216.1,216.01,3.78535822]
[1756435823682,7.53,216.1,216.02,3.78535822]
[1756435823884,7.53,216.1,216.01,3.78535822]
[1756435825382,7.53,216.17,216.02,7.66]
[1756435825589,7.53,216.17,216.05,7.66]
[1756435826483,7.53,216.15,216.03,3.78535822]
[1756435826685,7.53,216.15,216.01,3.78535822]
[1756435826887,7.53,216.15,216.0,11.44535822]
[1756435827388,7.53,216.15,216.0,7.66]
[1756435827686,7.53,216.15,216.02,3.78535822]
[1756435827881,7.53,216.15,216.01,3.78535822]
[1756435828579,7.53,216.15,216.02,7.66]
[1756435829387,7.53,216.15,216.02,11.44535822]
[1756435829688,7.53,216.15,216.03,3.78535822]
[1756435830479,7.53,216.15,216.02,11.44535822]
[1756435830680,7.53,216.15,216.02,3.78535822]
[1756435831085,7.53,216.15,216.03,7.66]
[1756435831286,10.08154831,216.15,216.03,7.66]
[1756435832586,7.53,216.15,216.03,7.66]
[1756435833787,7.53,216.15,216.01,6.33690653]
[1756435833788,7.53,216.19,216.08,7.66]
[1756435833992,7.53,216.08,216.02,11.44535822]
[1756435834287,7.53,216.08,216.02,7.66]
[1756435835292,7.53,216.12,216.04,11.44535822]
[1756435835495,7.53,216.19,216.08,2.55154831]
[1756435835687,7.53,216.24,216.12,11.44535822]
[1756435835884,7.53,216.24,216.1,5.03112539]
[1756435835885,7.53,216.24,216.14,6.33690653]
[1756435836495,7.53,216.24,216.14,2.55154831]
[1756435836896,7.53,216.24,216.16,11.46535822]
[1756435837091,69.25154831,216.32,216.17,2.55154831]
[1756435837396,7.41,216.31,216.16,11.46535822]
[1756435837995,7.41,216.31,216.17,3.78535822]
[1756435838391,7.41,216.31,216.16,11.46535822]
[1756435838695,7.41,216.31,216.17,3.78535822]
[1756435838898,7.41,216.31,216.18,7.68]
[1756435839397,7.41,216.31,216.2,7.68]
[1756435841493,7.41,216.31,216.15,7.68]
[1756435841895,11.59062701,216.31,216.15,7.68]
[1756435842096,7.41,216.26,216.1,7.68]
[1756435846092,7.41,216.22,216.1,7.68]
[1756435846700,4.18062701,216.23,216.03,32.14535822]
[1756435846902,7.41,216.22,216.05,7.68]
[1756435847495,7.41,216.18,216.05,7.68]
[1756435849306,7.41,216.23,216.06,11.46535822]
[1756435849506,7.41,216.23,216.07,7.68]
[1756435852606,7.41,216.19,216.07,7.68]
[1756435856599,4.18062701,216.23,216.07,7.68]
[1756435856798,4.18062701,216.32,216.14,7.68]
[1756435857000,7.41,216.31,216.14,7.68]
[1756435857201,4.18062701,216.28,216.14,7.68]
[1756435857409,7.41,216.27,216.06,28.14535822]
[1756435857606,7.41,216.27,216.07,11.46535822]
[1756435857805,17.33,216.27,216.1,3.78535822]
[1756435858011,17.33,216.27,216.07,5.03112539]